bitfinex/quotes_SOLUSD_20250630
["timestamp","ask_amount","ask_price","bid_price","bid_amount"]
[1751313859202,6.54926014,157.5,157.44,6.35125835]
[1751313859410,6.54926014,157.5,157.46,5.5471084]
[1751313859610,6.54926014,157.5,157.44,6.35125835]
[1751313859808,6.54926014,157.5,157.46,5.5471084]
[1751313860109,6.54926014,157.5,157.44,6.35125835]
[1751313860313,12.09636854,157.5,157.44,6.35125835]
[1751313860494,5.5471084,157.48,157.43,11.99912607]
[1751313860689,6.54926014,157.5,157.43,11.99912607]
[1751313860690,5.5471084,157.47,157.43,0.1]
[1751313860999,5.5471084,157.46,157.43,0.1]
[1751313861319,5.5471084,157.45,157.43,0.1]
[1751313861613,5.5471084,157.44,157.43,0.1]
[1751313861915,50.19675726,157.44,157.43,0.1]
[1751313862502,56.54838327,157.44,157.43,0.1]
[1751313868522,83.40838327,157.44,157.43,0.1]
[1751313869121,64.75873441,157.44,157.43,0.1]
[1751313869501,6.35132998,157.45,157.43,0.1]
[1751313869823,11.89843838,157.45,157.43,0.1]
[1751313870197,6.35092577,157.46,157.43,0.1]
[1751313870403,11.89803417,157.46,157.43,0.1]
[1751313870612,5.5471084,157.44,157.43,0.1]
[1751313870829,51.05675726,157.44,157.43,0.1]
[1751313871035,45.50964886,157.44,157.43,0.1]
[1751313871201,57.40838327,157.44,157.43,0.1]
[1751313874008,51.86127487,157.44,157.43,0.1]
[1751313874322,57.40838327,157.44,157.43,0.1]
[1751313876802,57.55054484,157.44,157.43,0.1]
[1751313877106,26.0,157.4,157.36,7.36]
[1751313877309,5.5471084,157.37,157.36,7.36]
[1751313877732,5.5471084,157.38,157.36,7.36]
[1751313878018,11.90138383,157.38,157.36,7.36]
[1751313880311,26.0,157.4,157.36,7.36]
[1751313880606,37.90050321,157.4,157.36,7.36]
[1751313881438,5.5471084,157.37,157.36,7.36]
[1751313881639,26.86,157.39,157.36,7.36]
[1751313881934,5.5471084,157.38,157.36,7.36]
[1751313882443,48.23649519,157.4,157.36,7.36]
[1751313882444,31.5471084,157.4,157.36,7.36]
[1751313882624,37.90057732,157.4,157.36,7.36]
[1751313882951,18.64964886,157.44,157.38,5.5471084]
[1751313883115,5.5471084,157.42,157.37,7.1088084]
[1751313883434,5.5471084,157.41,157.37,1.5617]
[1751313883731,51.86127487,157.44,157.37,7.1088084]
[1751313883732,5.5471084,157.42,157.37,7.1088084]
[1751313884442,6.35283654,157.41,157.37,7.1088084]
[1751313885331,6.35260245,157.42,157.37,7.91610217]
[1751313885657,11.89971085,157.42,157.38,5.5471084]
[1751313886143,6.35260245,157.42,157.38,5.5471084]
[1751313886328,6.35260245,157.42,157.37,1.5617]
[1751313886522,11.89971085,157.42,157.37,7.1088084]
[1751313888726,6.35260245,157.42,157.38,5.5471084]
[1751313890443,5.5471084,157.41,157.36,12.9071084]
[1751313890642,5.5471084,157.4,157.36,12.9071084]
[1751313890835,5.5471084,157.41,157.36,12.9071084]
[1751313891832,11.90025103,157.41,157.36,12.9071084]
[1751313894455,11.90025103,157.41,157.36,7.36]
[1751313894751,11.90025103,157.41,157.36,12.9071084]
[1751313895353,11.90025103,157.41,157.36,7.36]
[1751313895537,11.90025103,157.41,157.36,12.9071084]
[1751313896242,5.5471084,157.4,157.36,7.36]
[1751313896445,6.35445129,157.37,157.36,7.36]
[1751313896647,11.90155969,157.37,157.36,7.36]
[1751313896859,30.55120855,157.37,157.36,0.1]
[1751313898347,57.41120855,157.37,157.36,0.1]
[1751313899245,33.21445129,157.37,157.36,0.1]
[1751313899446,38.76155969,157.37,157.36,0.1]
[1751313900156,33.21445129,157.37,157.36,0.1]
[1751313900350,6.35445129,157.37,157.36,0.1]
[1751313900557,5.85445129,157.37,157.36,0.1]
[1751313901261,5.5471084,157.38,157.36,0.1]
[1751313901662,33.39793249,157.45,157.36,0.1]
[1751313901862,0.14216157,157.42,157.36,0.1]
[1751313902061,5.5471084,157.41,157.36,5.6471084]
[1751313902773,6.35364381,157.39,157.36,0.1]
[1751313903446,0.2,157.43,157.38,5.5471084]
[1751313903641,0.2,157.43,157.4,5.5471084]
[1751313903952,6.55204365,157.43,157.39,5.5471084]
[1751313904156,12.09915205,157.43,157.38,12.8071084]
[1751313904553,6.55204365,157.43,157.39,5.5471084]
[1751313905866,12.09915205,157.43,157.39,5.5471084]
[1751313906459,12.09915205,157.43,157.38,12.8071084]
[1751313907273,12.09915205,157.43,157.38,7.26]
[1751313907452,5.5471084,157.41,157.38,7.26]
[1751313908162,24.19675726,157.42,157.38,7.26]
[1751313908480,6.55204365,157.43,157.4,5.5471084]
[1751313908774,12.09915205,157.43,157.38,12.8071084]
[1751313909337,5.5471084,157.41,157.38,7.26]
[1751313910345,5.5471084,157.4,157.38,7.26]
[1751313910546,5.5471084,157.39,157.38,7.26]
[1751313910747,5.5471084,157.39,157.36,0.1]
[1751313911267,5.5471084,157.4,157.36,0.1]
[1751313911463,6.35364381,157.39,157.36,0.1]
[1751313911957,6.35364381,157.39,157.36,5.6471084]
[1751313913195,6.35364381,157.39,157.36,0.1]
[1751313915877,25.00288901,157.4,157.36,0.1]
[1751313916078,30.54999741,157.4,157.36,0.1]
[1751313916385,46.43309779,157.4,157.36,0.1]
[1751313916674,5.5471084,157.39,157.36,0.1]
[1751313916888,46.43309779,157.4,157.36,0.1]
[1751313917997,5.5471084,157.38,157.36,0.1]
[1751313918178,5.5471084,157.37,157.36,0.1]
[1751313919160,24.19675726,157.37,157.36,0.1]
[1751313919780,30.55120855,157.37,157.36,0.1]
[1751313924381,25.00410015,157.37,157.36,0.1]
[1751313924584,30.55120855,157.37,157.36,0.1]
[1751313925283,6.35445129,157.37,157.36,0.1]
[1751313926364,11.90155969,157.37,157.36,0.1]
[1751313927168,38.74155969,157.37,157.36,0.1]
[1751313928781,33.19445129,157.37,157.36,0.1]
[1751313928965,38.74155969,157.37,157.36,0.1]
[1751313931183,33.19445129,157.37,157.36,0.1]
[1751313933485,38.74155969,157.37,157.36,0.1]
[1751313933883,11.90155969,157.37,157.36,0.1]
[1751313934186,38.72155969,157.37,157.36,0.1]
[1751313935171,33.17445129,157.37,157.36,0.1]
[1751313936768,6.55417206,157.38,157.36,0.1]
[1751313936967,0.2,157.38,157.36,5.6471084]
[1751313937172,0.2,157.38,157.37,5.5471084]
[1751313937779,0.2,157.38,157.36,0.1]
[1751313937987,6.55416689,157.38,157.37,5.5471084]
[1751313938895,6.55416689,157.38,157.36,5.6471084]
[1751313942098,6.55416689,157.38,157.36,0.1]
[1751313942398,6.55416689,157.38,157.36,5.6471084]
[1751313942591,0.2,157.38,157.37,5.5471084]
[1751313944298,0.2,157.38,157.37,11.90155969]
[1751313944892,0.2,157.38,157.37,5.5471084]
[1751313945197,12.10116134,157.38,157.36,5.93481396]
[1751313945397,51.01675726,157.37,157.36,0.1]
[1751313945586,32.3671084,157.37,157.36,0.1]
[1751313945788,26.82,157.37,157.36,0.1]
[1751313946596,0.2,157.38,157.36,5.6471084]
[1751313946796,0.2,157.38,157.37,5.5471084]
[1751313948600,0.2,157.38,157.37,11.90155969]
[1751313949083,0.2,157.38,157.37,12.3280444]
[1751313949285,0.2,157.38,157.37,38.3280444]
[1751313949698,0.2,157.43,157.38,0.14216157]
[1751313949883,0.2,157.43,157.42,5.5471084]
[1751313951105,0.2,157.43,157.42,31.5471084]
[1751313951881,0.2,157.43,157.41,12.23557092]
[1751313951882,0.2,157.43,157.41,5.88273438]
[1751313952088,6.55214652,157.43,157.39,5.5471084]
[1751313952707,6.55214652,157.43,157.4,5.5471084]
[1751313952890,0.2,157.43,157.4,5.5471084]
[1751313953213,6.55207887,157.43,157.4,5.5471084]
[1751313953409,6.55207887,157.43,157.39,5.5471084]
[1751313953791,6.55207887,157.43,157.37,39.57434312]
[1751313953998,0.2,157.43,157.4,5.5471084]
[1751313954504,6.55206222,157.43,157.39,5.5471084]
[1751313955019,6.55206222,157.43,157.4,5.5471084]
[1751313955701,6.55206222,157.43,157.39,5.5471084]
[1751313955901,6.55206222,157.43,157.4,5.5471084]
[1751313956116,0.2,157.43,157.4,5.5471084]
[1751313957005,6.55209865,157.43,157.4,5.5471084]
[1751313958319,6.55209865,157.43,157.39,5.5471084]
[1751313958504,0.2,157.43,157.4,5.5471084]
[1751313959218,0.2,157.43,157.41,5.5471084]
[1751313959914,0.2,157.43,157.4,5.5471084]
[1751313960496,0.2,157.43,157.42,5.5471084]
[1751313962426,0.2,157.43,157.4,26.0]
[1751313962821,0.2,157.43,157.41,5.5471084]
[1751313963416,0.2,157.43,157.4,31.5471084]
[1751313963629,6.55209373,157.43,157.4,5.5471084]
[1751313964205,0.2,157.43,157.4,5.5471084]
[1751313964621,6.55216112,157.43,157.4,5.5471084]
[1751313965232,0.2,157.43,157.4,5.5471084]
[1751313968526,6.55207832,157.43,157.39,5.5471084]
[1751313969704,6.55207832,157.43,157.4,5.5471084]
[1751313971836,6.55207832,157.43,157.38,32.45393847]
[1751313972006,6.55207832,157.43,157.39,5.5471084]
[1751313972410,0.2,157.43,157.39,5.5471084]
[1751313973622,0.2,157.43,157.4,5.5471084]
[1751313973814,0.2,157.43,157.41,5.5471084]
[1751313974834,0.2,157.43,157.42,5.5471084]
[1751313976636,0.2,157.43,157.42,11.89954138]
[1751313977442,0.2,157.43,157.42,5.5471084]
[1751313978352,0.2,157.43,157.4,6.35310751]
[1751313978632,0.2,157.43,157.41,5.5471084]
[1751313979533,0.2,157.43,157.41,11.89993364]
[1751313980337,0.2,157.45,157.41,11.89993364]
[1751313980514,0.1,157.45,157.41,11.89993364]
[1751313981019,11.9983949,157.45,157.4,5.5471084]
[1751313981233,6.4512865,157.45,157.41,5.5471084]
[1751313981934,0.1,157.45,157.41,11.89990367]
[1751313982240,25.10087892,157.45,157.41,5.5471084]
[1751313983331,25.10087892,157.45,157.39,6.35364381]
[1751313983537,18.64964886,157.43,157.39,5.5471084]
[1751313983740,18.64964886,157.43,157.38,0.1]
[1751313983933,18.64964886,157.43,157.39,5.5471084]
[1751313984128,5.5471084,157.42,157.38,0.1]
[1751313984336,18.64964886,157.41,157.38,0.1]
[1751313984726,5.5471084,157.41,157.38,0.1]
[1751313984939,5.5471084,157.39,157.38,0.1]
[1751313985443,11.90075221,157.39,157.38,0.1]
[1751313988652,6.35364381,157.39,157.38,0.1]
[1751313988861,11.90075221,157.39,157.38,0.1]
[1751313991436,18.64964886,157.4,157.38,0.1]
[1751313991437,25.00289202,157.4,157.38,0.1]
[1751313992048,18.64964886,157.4,157.38,0.1]
[1751313995661,18.64964886,157.42,157.38,12.00110766]
[1751313995953,18.64964886,157.42,157.38,5.6471084]
[1751313996755,18.64964886,157.42,157.39,5.5471084]
[1751313997460,11.89994494,157.41,157.38,0.1]
[1751313997846,18.64964886,157.4,157.38,0.1]
[1751313998155,24.19675726,157.4,157.38,0.1]
[1751313999250,25.00329267,157.39,157.38,0.1]
[1751314000371,18.64964886,157.39,157.38,0.1]
[1751314000735,24.19675726,157.39,157.38,0.1]
[1751314000939,18.64964886,157.39,157.38,0.1]
[1751314001135,24.19675726,157.39,157.38,0.1]
[1751314001460,30.55040107,157.39,157.38,0.1]
[1751314001665,18.64964886,157.39,157.38,0.1]
[1751314002050,30.55040107,157.39,157.38,0.1]
[1751314002750,57.29040107,157.39,157.38,0.1]
[1751314005354,18.64964886,157.39,157.38,0.1]
[1751314005753,25.00295911,157.4,157.38,0.1]
[1751314005951,18.64964886,157.4,157.38,0.1]
[1751314009172,12.09920843,157.43,157.38,12.00113022]
[1751314009381,18.64964886,157.42,157.39,5.5471084]
[1751314009680,18.64964886,157.42,157.38,12.00113022]
[1751314010479,0.2,157.43,157.41,5.5471084]
[1751314010772,0.2,157.43,157.42,5.5471084]
[1751314011960,0.2,157.43,157.42,11.89954138]
[1751314012368,0.2,157.43,157.41,11.89979653]
[1751314012552,0.2,157.43,157.41,5.5471084]
[1751314013850,0.2,157.43,157.4,32.35315924]
[1751314014164,0.2,157.43,157.41,11.89989698]
[1751314014363,0.2,157.43,157.41,6.35278858]
[1751314014565,0.2,157.43,157.41,11.89989698]
[1751314014769,0.2,157.43,157.42,5.5471084]
[1751314016159,0.2,157.43,157.42,17.79953496]
[1751314016675,0.2,157.43,157.42,11.89954138]
[1751314018375,0.2,157.43,157.42,17.79953496]
[1751314018580,0.2,157.43,157.42,43.94169653]
[1751314018958,0.2,157.43,157.42,38.39458813]
[1751314019159,0.2,157.43,157.42,38.04170295]
[1751314019851,0.2,157.43,157.42,43.94169653]
[1751314021572,0.2,157.43,157.42,44.22601967]
[1751314021878,0.2,157.43,157.42,18.86126296]
[1751314022061,0.1,157.45,157.44,31.97359311]
[1751314022372,0.1,157.45,157.44,51.3575773]
[1751314022570,0.1,157.45,157.44,51.9927399]
[1751314023171,0.2,157.5,157.45,0.28432314]
[1751314023361,0.2,157.5,157.49,5.5471084]
[1751314024254,0.2,157.5,157.49,11.89671789]
[1751314028883,0.1,157.52,157.49,11.89671789]
[1751314029066,0.1,157.52,157.51,5.5471084]
[1751314030366,0.1,157.52,157.51,11.89591165]
[1751314031059,0.2,157.56,157.54,26.0]
[1751314031379,0.2,157.56,157.53,5.5471084]
[1751314032271,0.2,157.56,157.52,26.0]
[1751314032476,0.2,157.56,157.55,11.89429976]
[1751314032879,0.2,157.56,157.55,5.5471084]
[1751314033090,0.2,157.56,157.54,11.89452979]
[1751314033791,0.2,157.56,157.54,6.34742139]
[1751314034096,0.2,157.56,157.54,11.89452979]
[1751314034967,0.2,157.56,157.55,5.5471084]
[1751314036682,0.2,157.56,157.55,11.89429976]
[1751314037472,0.2,157.57,157.55,11.89429976]
[1751314037680,0.1,157.59,157.58,0.42648471]
[1751314037875,0.1,157.63,157.61,26.0]
[1751314038118,0.1,157.63,157.62,5.5471084]
[1751314038773,0.1,157.63,157.62,12.52591819]
[1751314040968,0.1,157.69,157.65,26.0]
[1751314041193,0.1,157.69,157.68,5.5471084]
[1751314042278,0.1,157.69,157.68,37.0942168]
[1751314042688,0.1,157.69,157.68,37.52070151]
[1751314042873,0.1,157.69,157.68,43.8626599]
[1751314043072,0.1,157.7,157.68,43.8626599]
[1751314043272,0.1,157.7,157.69,39.32126402]
[1751314043690,0.1,157.71,157.69,39.32126402]
[1751314043884,0.1,157.71,157.7,5.5471084]
[1751314044076,0.1,157.71,157.7,10.73203921]
[1751314044277,0.1,157.71,157.69,33.77415562]
[1751314044480,0.1,157.71,157.69,26.0]
[1751314044678,11.98789737,157.71,157.66,12.6871084]
[1751314044897,6.34195839,157.68,157.65,7.14]
[1751314045192,5.5471084,157.69,157.64,31.5471084]
[1751314045193,11.88876854,157.69,157.64,31.5471084]
[1751314045399,11.88876854,157.69,157.64,5.5471084]
[1751314045631,5.5471084,157.68,157.63,5.5471084]
[1751314045896,5.5471084,157.68,157.63,31.5471084]
[1751314046098,11.88876854,157.69,157.64,5.5471084]
[1751314046304,6.34166014,157.69,157.64,5.5471084]
[1751314046479,11.88876854,157.69,157.64,5.5471084]
[1751314046873,0.1,157.71,157.67,5.5471084]
[1751314047198,0.1,157.71,157.68,5.5471084]
[1751314047677,5.5471084,157.69,157.64,5.5471084]
[1751314047875,5.5471084,157.68,157.63,5.5471084]
[1751314048080,5.5471084,157.68,157.63,31.5471084]
[1751314048291,5.5471084,157.68,157.63,5.5471084]
[1751314048493,5.5471084,157.67,157.62,12.6871084]
[1751314049002,11.88970231,157.67,157.62,12.6871084]
[1751314050195,11.88970231,157.67,157.62,7.14]
[1751314050496,5.5471084,157.67,157.62,19.03145914]
[1751314050703,24.19675726,157.68,157.63,5.5471084]
[1751314051702,6.34236062,157.67,157.63,5.5471084]
[1751314052091,5.5471084,157.65,157.62,7.14]
[1751314052292,5.5471084,157.66,157.62,7.14]
[1751314052601,11.88946902,157.67,157.62,12.6871084]
[1751314053123,6.34236062,157.67,157.62,12.6871084]
[1751314053301,5.5471084,157.67,157.62,19.03145132]
[1751314053504,5.5471084,157.67,157.62,12.6871084]
[1751314053804,11.88958512,157.67,157.62,7.14]
[1751314054005,5.5471084,157.66,157.62,12.6871084]
[1751314054593,11.88958512,157.67,157.62,12.6871084]
[1751314055194,18.64964886,157.69,157.65,5.5471084]
[1751314055399,5.5471084,157.66,157.62,7.14]
[1751314055583,5.5471084,157.66,157.62,19.03141864]
[1751314055785,5.6471084,157.67,157.62,19.03141864]
[1751314055988,0.1,157.67,157.65,5.5471084]
[1751314056196,0.1,157.67,157.64,5.5471084]
[1751314056400,0.1,157.67,157.63,5.5471084]
[1751314056790,0.1,157.67,157.62,13.48431024]
[1751314057110,0.1,157.67,157.63,5.5471084]
[1751314057493,6.44236491,157.67,157.62,13.48431024]
[1751314057691,6.44236491,157.67,157.63,5.5471084]
[1751314058008,0.1,157.67,157.63,5.5471084]
[1751314058695,11.98951411,157.67,157.62,13.48431024]
[1751314058888,11.98951411,157.67,157.62,19.03141864]
[1751314059084,6.44240571,157.67,157.63,5.5471084]
[1751314059291,11.98951411,157.67,157.62,12.6871084]
[1751314062095,11.98951411,157.67,157.62,7.14]
[1751314062096,5.5471084,157.65,157.62,7.14]
[1751314062305,5.5471084,157.64,157.59,5.7471084]
[1751314062709,5.5471084,157.64,157.59,0.2]
[1751314062907,11.89107845,157.63,157.59,0.2]
[1751314063212,5.5471084,157.62,157.59,0.2]
[1751314063414,5.5471084,157.61,157.59,0.2]
[1751314063711,18.64964886,157.62,157.59,0.2]
[1751314064111,1.6382,157.63,157.59,5.7471084]
[1751314064498,1.6382,157.63,157.6,5.5471084]
[1751314064816,30.54004249,157.65,157.6,5.5471084]
[1751314065612,11.8908382,157.64,157.59,12.09268852]
[1751314066496,5.5471084,157.62,157.59,0.2]
[1751314067215,6.3437298,157.64,157.59,0.2]
[1751314067216,5.5471084,157.61,157.59,0.2]
[1751314067793,11.89221807,157.61,157.59,0.2]
[1751314070508,5.5471084,157.6,157.59,0.2]
[1751314070904,24.19675726,157.6,157.59,0.2]
[1751314071110,25.9949804,157.6,157.59,0.2]
[1751314071310,32.73714197,157.6,157.59,0.2]
[1751314072004,39.08231963,157.6,157.59,0.2]
[1751314074602,65.68231963,157.6,157.59,0.2]
[1751314075004,65.54015806,157.6,157.59,0.2]
[1751314075197,11.89161298,157.62,157.59,0.2]
[1751314075430,6.34450458,157.62,157.59,0.2]
[1751314076127,18.64964886,157.63,157.59,5.7471084]
[1751314076345,6.4459,157.66,157.61,5.5471084]
[1751314076626,18.64964886,157.65,157.62,5.5471084]
[1751314076839,18.64964886,157.66,157.63,5.5471084]
[1751314077019,6.34281935,157.66,157.61,6.34463284]
[1751314077220,11.88992775,157.66,157.61,11.89174124]
[1751314078131,11.88992775,157.66,157.6,7.12]
[1751314078307,6.34281935,157.66,157.61,5.5471084]
[1751314078606,11.88992775,157.66,157.61,5.5471084]
[1751314079452,30.63924545,157.67,157.62,5.5471084]
[1751314079639,25.09213705,157.67,157.63,5.5471084]
[1751314081028,18.74964886,157.67,157.63,11.89106163]
[1751314081235,18.74964886,157.67,157.65,5.5471084]
[1751314081236,0.1,157.67,157.65,5.5471084]
[1751314081421,0.1,157.67,157.63,6.34395323]
[1751314081624,0.1,157.67,157.64,5.5471084]
[1751314081834,0.1,157.67,157.63,11.89106163]
[1751314082256,0.1,157.67,157.64,5.5471084]
[1751314082737,0.1,157.67,157.64,11.89062323]
[1751314082941,0.1,157.67,157.64,5.5471084]
[1751314083447,0.1,157.67,157.64,11.89066669]
[1751314083830,6.44236898,157.67,157.6,33.12]
[1751314084052,5.5471084,157.61,157.59,0.2]
[1751314085253,18.64964886,157.65,157.59,12.09256546]
[1751314085549,24.19675726,157.65,157.6,5.5471084]
[1751314085938,1.597,157.66,157.61,5.5471084]
[1751314085939,18.64964886,157.66,157.61,5.5471084]
[1751314086123,5.5471084,157.66,157.62,5.5471084]
[1751314086645,25.09201292,157.67,157.61,5.5471084]
[1751314086846,5.5471084,157.66,157.62,6.34437254]
[1751314087038,25.09201292,157.67,157.62,6.34437254]
[1751314087236,5.5471084,157.66,157.62,6.34437254]
[1751314087842,5.5471084,157.66,157.61,11.8917445]
[1751314088065,5.5471084,157.65,157.6,6.34510823]
[1751314088355,5.5471084,157.65,157.6,11.89221663]
[1751314090360,5.5471084,157.63,157.59,6.54548137]
[1751314090731,5.5471084,157.62,157.59,0.2]
[1751314090932,5.5471084,157.63,157.59,6.54552244]
[1751314092261,11.89107935,157.63,157.59,0.2]
[1751314092428,5.5471084,157.61,157.59,0.2]
[1751314093337,30.54193492,157.6,157.59,0.2]
[1751314093865,30.82625806,157.6,157.59,0.2]
[1751314096364,56.96841963,157.6,157.59,0.2]
[1751314096539,56.82625806,157.6,157.59,0.2]
[1751314097130,56.96841963,157.6,157.59,0.2]
[1751314100936,62.51552803,157.6,157.59,0.2]
[1751314101367,56.96841963,157.6,157.59,0.2]
[1751314101985,42.85062803,157.6,157.59,0.2]
[1751314102195,56.82786892,157.56,157.55,0.2]
[1751314102554,56.97003049,157.56,157.55,0.2]
[1751314103659,58.53023049,157.56,157.55,0.2]
[1751314105196,50.62324197,157.53,157.52,0.2]
[1751314105353,77.20324197,157.53,157.52,0.2]
[1751314106170,83.55123917,157.53,157.52,0.2]
[1751314108459,57.55123917,157.53,157.52,0.2]
[1751314112282,30.97123917,157.53,157.52,0.2]
[1751314112480,57.55123917,157.53,157.52,0.2]
[1751314125090,52.00413077,157.53,157.52,0.2]
[1751314125296,83.55123917,157.53,157.52,0.2]
[1751314125594,30.54475446,157.53,157.52,0.2]
[1751314126695,5.5471084,157.54,157.52,0.2]
[1751314126995,5.5471084,157.53,157.52,0.2]
[1751314127197,6.3479972,157.53,157.52,0.2]
[1751314127393,11.8951056,157.53,157.52,0.2]
[1751314130385,5.5471084,157.53,157.52,0.2]
[1751314130586,30.54435659,157.54,157.52,0.2]
[1751314130788,24.19675726,157.54,157.52,0.2]
[1751314131198,11.89432987,157.55,157.52,0.2]
[1751314131378,24.19675726,157.54,157.52,0.2]
[1751314131698,5.5471084,157.53,157.52,0.2]
[1751314133698,11.8951056,157.53,157.52,0.2]
[1751314134390,30.54475446,157.53,157.52,0.2]
[1751314139309,24.99764606,157.53,157.52,0.2]
[1751314139611,30.54475446,157.53,157.52,0.2]
[1751314139996,30.97123917,157.53,157.52,0.2]
[1751314144697,18.64964886,157.49,157.45,0.2]
[1751314144887,50.19675726,157.46,157.45,0.2]
[1751314145207,77.18324197,157.46,157.45,0.2]
[1751314145710,76.75675726,157.46,157.45,0.2]
[1751314145900,50.19675726,157.46,157.45,0.2]
[1751314146102,56.54757651,157.46,157.45,0.2]
[1751314149486,50.19675726,157.46,157.45,0.2]
[1751314149894,18.64964886,157.46,157.45,0.2]
[1751314150611,5.5471084,157.47,157.45,0.2]
[1751314151921,24.19675726,157.46,157.45,0.2]
[1751314152094,18.64964886,157.46,157.45,0.2]
[1751314153218,25.00046811,157.46,157.45,0.2]
[1751314154103,18.64964886,157.46,157.45,0.2]
[1751314159834,25.00046811,157.46,157.45,0.2]
[1751314162224,30.54757651,157.46,157.45,0.2]
[1751314167408,57.08757651,157.46,157.45,0.2]
[1751314169305,30.54757651,157.46,157.41,6.9700084]
[1751314171308,30.54757651,157.46,157.41,1.4229]
[1751314171508,30.54757651,157.46,157.41,6.9700084]
[1751314172913,30.54757651,157.46,157.41,5.5471084]
[1751314173119,5.5471084,157.45,157.4,5.5471084]
[1751314173417,5.5471084,157.45,157.39,11.90058144]
[1751314174033,25.00127782,157.44,157.39,11.90058144]
[1751314174204,25.00127782,157.44,157.4,5.5471084]
[1751314175019,18.64964886,157.44,157.4,5.5471084]
[1751314175934,18.64964886,157.47,157.43,5.5471084]
[1751314176106,18.64964886,157.48,157.4,0.63532401]
[1751314176310,18.64964886,157.48,157.44,5.5471084]
[1751314176539,18.64964886,157.48,157.4,6.49868367]
[1751314176824,18.64964886,157.48,157.44,5.5471084]
[1751314177334,24.99969683,157.48,157.44,5.5471084]
[1751314179533,6.3497577,157.49,157.45,5.5471084]
[1751314180043,11.8968661,157.49,157.44,11.89858178]
[1751314180335,36.66043204,157.5,157.45,5.5471084]
[1751314180636,18.64964886,157.49,157.45,5.5471084]
[1751314181418,24.99928237,157.49,157.45,5.5471084]
[1751314184041,24.99928237,157.49,157.45,11.89830049]
[1751314184941,24.99928237,157.49,157.45,6.35119209]
[1751314185145,24.99928237,157.49,157.44,11.89856125]
[1751314185523,30.54639077,157.49,157.44,11.89856125]
[1751314186139,18.64964886,157.49,157.44,11.89856125]
[1751314186439,24.76398641,157.5,157.47,5.5471084]
[1751314186941,6.11433755,157.5,157.48,5.5471084]
[1751314187722,0.1,157.52,157.49,5.5471084]
[1751314187934,0.1,157.52,157.51,5.5471084]
[1751314188420,0.1,157.52,157.51,11.89591165]
[1751314188621,0.1,157.52,157.51,5.5471084]
[1751314189336,0.1,157.52,157.48,5.86335966]
[1751314189337,6.44850425,157.52,157.48,5.86335966]
[1751314189537,11.99561265,157.52,157.47,5.86335966]
[1751314189743,11.99561265,157.52,157.46,17.76127325]
[1751314189943,5.5471084,157.51,157.46,11.41046806]
[1751314190252,6.34960949,157.49,157.46,5.86335966]
[1751314190456,11.89671789,157.49,157.45,5.86335966]
[1751314190830,11.89671789,157.49,157.44,17.76194733]
[1751314191230,11.89671789,157.49,157.44,11.89858767]
[1751314191853,11.89671789,157.49,157.44,6.35147927]
[1751314192055,11.89671789,157.49,157.44,11.89858767]
[1751314192247,6.34960949,157.49,157.45,5.5471084]
[1751314192444,18.64964886,157.49,157.45,5.5471084]
[1751314192642,0.1,157.52,157.47,5.5471084]
[1751314192643,5.6471084,157.52,157.47,5.5471084]
[1751314192847,11.99563005,157.52,157.44,28.09390397]
[1751314193153,11.99563005,157.52,157.47,5.5471084]
[1751314193452,11.99563005,157.52,157.47,11.89720256]
[1751314193649,5.6471084,157.52,157.47,11.89720256]
[1751314193830,0.1,157.52,157.5,5.5471084]
[1751314195153,0.1,157.52,157.47,12.21345382]
[1751314195360,0.1,157.52,157.49,5.5471084]
[1751314195550,0.1,157.52,157.5,5.5471084]
[1751314195937,0.1,157.52,157.51,5.5471084]
[1751314199067,0.1,157.52,157.5,11.89618345]
[1751314199861,0.1,157.52,157.48,6.34965811]
[1751314200159,0.1,157.52,157.5,5.5471084]
[1751314201338,0.1,157.52,157.49,5.5471084]
[1751314201547,30.64533861,157.52,157.47,11.89746387]
[1751314201865,5.5471084,157.51,157.46,5.5471084]
[1751314202964,0.1,157.52,157.46,11.89787284]
[1751314203137,5.5471084,157.5,157.45,11.89819355]